bitfinex-derivatives/quotes_ETHF0:USTF0_20250816
["timestamp","ask_amount","ask_price","bid_price","bid_amount"]
[1755362566166,0.87995,4401.8,4401.7,1.4695]
[1755362566967,1.26745,4401.8,4401.7,1.4695]
[1755362567358,1.94685,4401.8,4401.6,3.2078]
[1755362567671,1.4928,4401.6,4401.5,20.733]
[1755362568370,1.94687,4401.6,4401.5,20.733]
[1755362568766,0.6288,4401.3,4400.7,0.6381]
[1755362569068,1.92495,4400.8,4400.6,35.9318]
[1755362569270,1.05095,4400.8,4400.7,20.73]
[1755362569866,1.92495,4400.8,4400.7,20.73]
[1755362570869,0.87674,4400.0,4399.9,4.3169]
[1755362571170,0.45422,4400.2,4400.1,0.6043]
[1755362571371,0.45422,4400.2,4400.1,1.5053]
[1755362571567,0.99849,4400.5,4400.4,0.6043]
[1755362571770,0.45419,4400.5,4400.4,22.2343]
[1755362573173,0.62799,4400.5,4400.4,22.2343]
[1755362573670,1.24719,4400.5,4400.4,22.2343]
[1755362574269,0.2583,4400.7,4399.9,3.2305]
[1755362574270,0.87674,4400.0,4399.9,4.7131]
[1755362574469,1.50554,4400.0,4399.9,4.7131]
[1755362574667,1.25074,4400.0,4399.9,25.4421]
[1755362574862,0.75074,4400.0,4399.9,25.4421]
[1755362575167,0.842,4400.0,4399.9,25.4421]
[1755362576472,0.5968,4400.0,4399.9,25.4421]
[1755362577173,0.9673,4400.0,4399.9,25.4421]
[1755362577474,1.2125,4400.0,4399.9,25.4421]
[1755362578075,0.7186,4400.0,4399.9,25.4421]
[1755362578274,0.5443,4400.0,4399.9,25.4421]
[1755362578474,0.7895,4400.0,4399.9,25.4421]
[1755362578674,0.7895,4400.0,4399.9,25.4411]
[1755362578875,0.7895,4400.0,4399.9,4.7131]
[1755362579170,1.2125,4400.0,4399.9,4.7131]
[1755362579372,1.4708,4400.0,4399.9,23.9358]
[1755362579766,1.4708,4400.0,4399.9,24.1777]
[1755362580176,1.4708,4400.0,4399.9,24.4406]
[1755362580376,1.4708,4400.0,4399.9,24.6067]
[1755362580577,1.4708,4400.0,4399.9,25.4411]
[1755362582076,1.4708,4400.0,4399.9,4.7131]
[1755362582271,0.3705,4400.8,4399.9,24.5391]
[1755362582570,1.05095,4400.8,4400.7,1.5053]
[1755362582777,0.45415,4400.8,4400.7,22.2323]
[1755362583181,0.45412,4401.2,4401.1,1.1091]
[1755362583380,0.45412,4401.2,4401.1,22.2323]
[1755362584073,0.6157,4401.6,4401.1,22.2323]
[1755362584277,3.66185,4401.8,4401.7,1.0005]
[1755362584580,3.66185,4401.8,4401.7,22.2323]
[1755362586379,0.45405,4401.8,4401.7,22.2323]
[1755362590381,1.39332,4402.3,4401.7,21.3313]
[1755362590582,0.5443,4401.9,4401.8,1.5053]
[1755362591081,1.2125,4401.9,4401.8,1.5053]
[1755362591474,1.4708,4401.6,4401.5,4.7131]
[1755362591674,1.4708,4401.6,4401.5,25.4351]
[1755362592278,1.2125,4401.6,4401.5,25.4351]
[1755362593081,0.9673,4401.6,4401.5,25.4351]
[1755362593981,1.2125,4401.6,4401.5,25.4351]
[1755362596087,1.4708,4401.6,4401.5,25.4351]
[1755362596383,1.4708,4401.6,4401.5,4.7131]
[1755362596584,1.4708,4401.6,4401.5,24.773]
[1755362597180,1.4708,4401.6,4401.5,25.4321]
[1755362597381,1.4708,4401.6,4401.5,4.7131]
[1755362597776,1.4708,4401.6,4401.5,25.4321]
[1755362598987,1.92487,4401.6,4401.5,25.4321]
[1755362600482,0.944,4401.0,4400.9,0.8152]
[1755362600682,1.4568,4401.0,4400.9,22.1524]
[1755362600883,1.4568,4401.0,4400.9,1.4344]
[1755362601182,1.3695,4401.0,4400.9,22.1514]
[1755362601780,1.3695,4401.0,4400.9,21.5322]
[1755362601988,1.15791,4401.5,4400.8,32.72]
[1755362601989,1.03394,4400.9,4400.8,32.72]
[1755362602189,1.59904,4400.9,4400.8,53.437]
[1755362602383,1.59904,4400.9,4400.8,53.6804]
[1755362602687,3.2078,4401.4,4400.8,33.5826]
[1755362602983,0.45411,4401.2,4401.1,1.4344]
[1755362603188,0.45411,4401.2,4401.1,22.1514]
[1755362605088,0.45411,4401.3,4401.1,22.1514]
[1755362605282,0.45411,4401.3,4401.2,1.4344]
[1755362610995,1.36191,4401.3,4401.2,1.4344]
[1755362611191,1.59901,4401.3,4401.2,1.0733]
[1755362611391,0.1671,4400.9,4400.8,32.72]
[1755362611691,1.1449,4400.9,4400.8,54.0562]
[1755362611890,0.7237,4400.9,4400.8,54.0562]
[1755362612091,1.85909,4400.9,4400.4,3.2078]
[1755362612292,0.3343,4400.6,4400.5,22.1504]
[1755362612598,0.98757,4400.6,4400.5,22.1504]
[1755362612799,0.98757,4400.6,4400.5,20.9594]
[1755362612999,0.98757,4400.6,4400.5,21.8923]
[1755362613201,0.98757,4400.6,4400.5,22.1504]
[1755362615598,0.78847,4400.6,4400.5,0.2434]
[1755362615895,0.78847,4400.6,4400.5,21.2175]
[1755362616101,0.78847,4400.6,4400.5,22.1504]
[1755362616300,0.98757,4400.6,4400.5,22.1504]
[1755362619901,0.45417,4400.6,4400.5,22.1504]
[1755362620106,0.45417,4400.7,4400.6,1.4344]
[1755362623405,0.0376,4401.0,4400.6,1.4344]
[1755362623406,0.311,4401.6,4401.5,0.1656]
[1755362623611,1.1970277,4401.6,4401.5,22.1504]
[1755362624805,0.72817,4401.6,4401.5,22.1504]
[1755362625011,0.45407,4401.6,4401.5,22.1504]
[1755362625410,0.45407,4401.6,4401.5,25.3582]
[1755362626007,0.0376,4402.1,4401.5,25.81228]
[1755362626211,0.49162,4402.1,4402.0,0.5718]
[1755362626411,0.70117384,4402.1,4402.0,22.1504]
[1755362627218,0.49162,4402.1,4402.0,22.1504]
[1755362627416,0.454,4402.3,4402.2,0.5718]
[1755362627618,0.4916,4402.3,4402.2,22.1494]
[1755362627820,0.6035,4402.3,4402.2,22.1494]
[1755362628021,0.765,4402.3,4402.2,22.1494]
[1755362628423,0.6035,4402.3,4402.2,22.1494]
[1755362628626,3.2078,4402.8,4402.2,22.1494]
[1755362628627,4.15755,4402.8,4402.7,0.5718]
[1755362628827,4.40501903,4402.8,4402.7,22.186]
[1755362630315,4.47521903,4402.8,4402.7,0.2462]
[1755362630522,1.0039,4402.3,4402.2,1.4762]
[1755362630721,1.0039,4402.3,4402.2,22.1902]
[1755362631121,1.0039,4402.3,4402.2,21.5362]
[1755362631329,1.0039,4402.3,4402.2,21.121]
[1755362631330,1.0741,4402.3,4402.2,21.121]
[1755362631517,1.0039,4402.3,4402.2,21.3854]
[1755362631721,1.0039,4402.3,4402.2,22.1882]
[1755362632922,0.454,4402.3,4402.2,22.1882]
[1755362633123,0.45399,4402.4,4402.3,1.4762]
[1755362633427,0.45399,4402.4,4402.3,22.1882]
[1755362634020,0.45398,4402.5,4402.4,0.9002]
[1755362634225,0.45398,4402.5,4402.4,1.4762]
[1755362634429,3.2458,4402.8,4402.4,1.93018]
[1755362634632,3.69975,4402.8,4402.7,1.4762]
[1755362634929,3.2078,4403.9,4403.8,1.4762]
[1755362635126,3.2078,4403.9,4403.8,22.1872]
[1755362636028,1.00372,4404.1,4404.0,1.0866]
[1755362636224,1.00372,4404.1,4404.0,1.4762]
[1755362636428,0.5499,4404.1,4404.0,1.4762]
[1755362636825,0.3882,4404.1,4404.0,1.4762]
[1755362637025,0.63101,4404.1,4404.0,1.4762]
[1755362637325,1.13483,4403.0,4402.0,2.84823063]
[1755362637531,0.1772,4402.2,4402.1,0.2462]
[1755362637732,0.72989,4402.4,4402.3,0.576]
[1755362638023,0.96179,4402.4,4402.3,0.6567]
[1755362638228,3.2078,4402.5,4400.3,1.13551]
[1755362638229,0.2379,4401.9,4401.8,0.7986]
[1755362638422,0.5078,4401.9,4401.8,22.1008]
[1755362639127,3.2078,4402.5,4401.8,21.8773]
[1755362639333,4.16958,4402.5,4402.4,1.4762]
[1755362639631,3.7156,4402.5,4402.4,22.3622]
[1755362639826,3.385,4402.5,4402.4,22.3622]
[1755362640133,3.2078,4402.5,4402.4,22.3622]
[1755362640727,0.1772,4402.5,4402.4,21.462]
[1755362641428,0.1772,4402.5,4402.4,22.3622]
[1755362642235,0.2152,4402.5,4402.4,22.3622]
[1755362644129,3.2078,4403.0,4402.9,0.45394]
[1755362644330,0.038,4403.2,4403.1,0.9002]
[1755362644532,0.5078,4403.2,4403.1,21.7214]
[1755362644931,0.5078,4402.9,4402.8,0.6567]
[1755362645131,0.5078,4402.9,4402.8,21.5587]
[1755362645429,0.5078,4402.9,4402.8,21.9876]
[1755362645629,0.5078,4402.9,4402.8,22.3772]
[1755362648432,0.5078,4402.9,4402.8,22.3662]
[1755362648633,0.5078,4402.9,4402.8,21.7122]
[1755362649033,0.5078,4402.9,4402.8,22.3662]
[1755362652144,0.1772,4402.9,4402.8,22.3662]
[1755362652439,0.038,4403.4,4403.3,1.2118]
[1755362652643,3.66167,4403.5,4403.4,1.4762]
[1755362652831,0.45387,4403.5,4403.4,1.4762]
[1755362653038,3.2078,4404.0,4403.9,1.4762]
[1755362653238,0.2699,4404.4,4404.1,0.576]
[1755362653546,3.2078,4404.5,4404.1,1.4989]
[1755362654037,0.2694,4404.9,4404.1,5.67572]
[1755362654235,0.2694,4404.9,4404.8,1.4762]
[1755362654236,0.507,4404.9,4404.8,1.4762]
[1755362654431,0.507,4404.9,4404.8,22.3622]
[1755362654631,0.1772,4404.9,4404.8,22.3622]
[1755362655040,0.507,4405.0,4404.9,1.4762]
[1755362659245,0.227,4405.7,4405.6,0.5762]
[1755362659447,0.4961,4405.7,4405.6,21.4602]
[1755362659942,0.4961,4405.7,4405.6,22.3589]
[1755362661546,0.4961,4405.7,4405.6,21.7152]
[1755362662147,3.2078,4405.8,4404.8,0.255]
[1755362662345,0.1669,4404.9,4404.8,1.54744]
[1755362662541,0.436,4404.9,4404.8,22.41844]
[1755362662742,0.4961,4404.9,4404.8,21.9647]
[1755362662948,0.4961,4404.9,4404.8,22.3459]
[1755362664140,3.2078,4405.8,4404.8,22.92675]
[1755362664345,3.2078,4405.8,4405.7,1.4749]
[1755362664544,3.88839,4406.3,4406.2,0.5762]
[1755362664744,4.15749,4406.3,4406.2,22.3679]
[1755362664943,4.15749,4406.3,4406.2,20.893]
[1755362665550,4.15749,4406.3,4406.2,21.148]
[1755362666147,3.88839,4406.3,4406.2,21.7242]
[1755362666354,3.2078,4406.3,4406.2,22.3679]
[1755362666550,3.2078,4406.8,4406.7,0.5762]
[1755362666752,4.2331,4406.8,4406.7,22.85345]
[1755362667346,4.2331,4406.8,4406.7,22.3999]
[1755362667747,3.2078,4406.8,4406.7,22.3999]
[1755362669254,0.7937,4407.1,4407.0,0.5762]
[1755362669455,0.7937,4407.1,4407.0,22.3909]
[1755362669456,1.0253,4407.1,4407.0,22.3909]
[1755362669652,3.2078,4407.4,4407.2,1.2199]
[1755362669962,3.2078,4407.4,4407.3,22.3899]
[1755362673264,3.8346,4407.4,4407.3,22.3899]
[1755362673458,4.0015,4407.4,4407.3,22.3899]
[1755362674155,3.2078,4407.4,4407.3,22.3899]
[1755362674358,4.0015,4408.1,4408.0,1.4749]
[1755362674562,4.2331,4408.1,4408.0,0.255]
[1755362676461,4.6865,4408.1,4408.0,0.255]
[1755362676867,4.6865,4408.1,4408.0,0.4221]
[1755362677267,4.6865,4408.1,4408.0,0.6846]
[1755362678063,4.6865,4408.1,4408.0,1.0937]
[1755362679464,4.6865,4408.1,4408.0,1.4749]
[1755362680866,4.2331,4408.1,4408.0,1.92831]
[1755362681065,3.2078,4408.1,4408.0,1.92831]
[1755362681462,3.2078,4408.1,4408.0,1.4749]
[1755362681661,4.2331,4408.1,4408.0,1.4749]
[1755362681862,4.2331,4408.1,4408.0,22.3649]
[1755362683767,3.8007,4408.1,4407.4,3.4628]
[1755362683963,0.4324,4407.8,4407.7,0.88304]
[1755362684163,1.0253,4407.8,4407.7,1.67334]
[1755362684566,1.0253,4407.8,4407.7,1.92834]
[1755362684768,1.0253,4407.8,4407.7,1.4749]
[1755362686064,1.0253,4407.8,4407.7,1.92834]
[1755362686259,1.0253,4407.8,4407.7,1.13314]
[1755362686465,1.0253,4407.5,4407.4,4.88117]
[1755362686664,1.0253,4407.5,4407.4,25.76317]
[1755362687069,1.0253,4407.5,4407.4,26.01817]
[1755362687470,0.4324,4407.7,4407.6,0.5762]
[1755362687768,0.4324,4407.7,4407.4,3.2078]
[1755362687968,0.88588,4407.3,4407.2,21.0471]
[1755362688170,1.0253,4407.3,4407.2,21.5606]
[1755362688366,1.0253,4407.3,4407.2,22.3509]
[1755362689271,0.45349,4407.2,4406.9,0.71202]
[1755362689465,0.7814,4407.0,4406.9,22.80972]
[1755362689664,1.48241,4407.0,4406.9,22.3562]
[1755362689868,1.0289,4407.0,4406.9,22.3562]
[1755362690272,0.4115,4407.0,4406.9,0.8402]
[1755362690573,0.4115,4407.0,4406.9,1.0927]
[1755362691077,1.0289,4407.0,4406.8,24.0878]
[1755362691273,0.4115,4407.0,4406.9,0.4239]
[1755362691473,0.4115,4407.0,4406.9,1.0927]
[1755362691669,0.6429,4407.0,4406.9,1.4802]
[1755362691876,1.0289,4407.0,4406.9,1.4802]
[1755362693577,1.0289,4407.0,4406.9,0.6764]
[1755362693772,1.0289,4407.0,4406.9,0.2585]
[1755362693977,1.0289,4407.0,4406.9,21.1305]
[1755362694369,1.0289,4407.0,4406.9,21.5484]
[1755362694578,1.0289,4407.0,4406.9,22.3522]
[1755362695480,0.83951,4407.1,4406.9,21.4537]
[1755362695781,1.48241,4407.1,4407.0,1.4802]
[1755362695975,2.09221274,4407.1,4407.0,1.4802]
[1755362698870,2.09221274,4407.1,4407.0,1.0927]
[1755362700179,2.09221274,4407.1,4407.0,0.2585]
[1755362700381,1.48247,4406.5,4406.4,0.5817]
[1755362700581,1.48247,4406.5,4406.4,21.6812]
[1755362700782,1.48247,4406.5,4406.4,0.8342]
[1755362701080,2.09280308,4406.5,4406.4,1.4802]
[1755362701281,1.48247,4406.5,4406.4,1.4802]
[1755362701693,0.386,4406.9,4406.4,1.93378]
[1755362701896,0.45356,4406.6,4406.5,1.4802]
[1755362702394,0.45355,4406.7,4406.5,0.5817]
[1755362702587,0.45355,4406.7,4406.6,1.4802]
[1755362702991,1.06352944,4406.7,4406.6,1.4802]
[1755362703192,3.2078,4407.1,4407.0,1.4802]
[1755362703497,5.06862669,4407.1,4407.0,1.4802]
[1755362703684,4.66138867,4407.1,4407.0,1.4802]
[1755362703889,4.89278867,4407.1,4407.0,0.2585]
[1755362704289,5.50257656,4407.1,4407.0,0.2585]
[1755362704788,0.86506,4406.6,4406.5,21.1791]
[1755362705096,1.48246,4406.6,4406.5,21.0094]
[1755362705486,0.45356,4406.6,4406.5,21.1025]
[1755362705689,3.2078,4407.1,4406.5,21.1025]
[1755362705690,4.2367,4407.1,4407.0,1.4802]
[1755362705991,5.04899987,4407.1,4407.0,1.4802]
[1755362706190,4.81759987,4407.1,4407.0,1.4802]
[1755362706392,4.66136846,4407.1,4407.0,1.4802]
[1755362706590,3.6613,4407.1,4407.0,1.4802]
[1755362707594,0.00526035,4407.5,4407.4,1.4802]
[1755362713200,3.2078,4408.2,4408.1,1.4802]
[1755362713393,3.2078,4408.2,4408.1,22.3112]
[1755362713992,3.6193,4408.8,4408.7,1.4802]
[1755362714198,4.0053,4408.8,4408.7,1.4802]
[1755362714695,4.2367,4408.8,4408.7,1.4802]
[1755362715693,4.69003,4408.8,4408.7,1.4802]
[1755362715892,4.2367,4408.8,4408.7,1.4802]
[1755362716702,4.2367,4408.8,4408.7,0.2585]
[1755362716894,1.48229,4408.2,4408.1,21.4498]
[1755362717095,1.48229,4408.2,4408.1,21.9608]
[1755362717596,1.48229,4408.2,4408.1,21.5074]
[1755362717792,1.48229,4408.2,4408.1,0.6764]
[1755362717993,1.48229,4408.2,4408.1,0.4239]
[1755362718192,1.48229,4408.2,4408.1,0.2585]
[1755362718395,0.70091,4408.0,4407.9,0.2585]
[1755362718693,3.2304,4408.2,4407.8,0.45343]
[1755362718694,0.45341,4408.1,4407.8,0.45343]
[1755362718893,0.45341,4408.1,4408.0,1.4822]
[1755362719300,0.83651,4408.1,4408.0,1.4822]
[1755362719498,0.3831,4408.1,4408.0,1.93561]
[1755362719798,3.2078,4408.2,4408.1,1.4822]
[1755362719998,1.47118,4408.3,4408.2,1.4822]
[1755362720297,1.47118,4408.3,4408.2,1.93559]
[1755362720498,4.67895,4408.7,4408.6,1.4822]
[1755362721100,3.2078,4408.7,4408.6,1.4822]
[1755362721301,1.0178,4409.0,4408.9,1.4822]
[1755362722302,0.8364,4409.1,4409.0,0.8752]
[1755362722495,0.8364,4409.1,4409.0,1.4822]
[1755362722695,1.0783,4409.1,4409.0,1.4822]
[1755362722898,1.2398,4409.1,4409.0,1.4822]
[1755362723098,1.4711,4409.1,4409.0,1.4822]
[1755362723299,1.0178,4409.1,4409.0,1.4822]
[1755362723599,3.2078,4409.2,4409.0,1.9355]
[1755362723799,3.2078,4409.2,4409.0,0.607]
[1755362723998,4.2256,4409.2,4409.1,1.4822]
[1755362726207,4.2256,4409.2,4409.1,0.2469]
[1755362726805,4.2256,4409.2,4408.3,0.2469]
[1755362726806,1.23987,4408.4,4408.3,0.2469]
[1755362727003,1.47117,4408.4,4408.3,0.2469]
[1755362727305,1.47117,4408.4,4408.3,1.4822]
[1755362727707,1.0178,4407.9,4407.8,0.8597]
[1755362727906,1.0178,4407.9,4407.8,1.2353]
[1755362728307,1.0178,4407.9,4407.8,1.4822]
[1755362729306,0.7865,4407.9,4407.8,1.4822]
[1755362729609,0.625,4407.9,4407.8,1.4822]
[1755362731910,0.625,4407.9,4407.8,1.93563]
[1755362732809,1.07842,4407.9,4407.8,1.4822]
[1755362733010,1.47122,4407.9,4407.8,1.4822]
[1755362733415,1.0178,4407.9,4407.8,1.4822]
[1755362734209,3.2078,4408.1,4407.4,0.45347]
[1755362734507,1.0178,4407.6,4407.5,1.4822]
[1755362737005,1.0178,4407.6,4407.5,1.1066]
[1755362737201,4.2256,4407.6,4407.1,20.795]
[1755362737406,1.47129,4407.2,4407.1,21.2244]
[1755362737607,1.47129,4407.2,4407.1,21.3993]
[1755362737907,1.47129,4407.2,4407.1,21.6462]
[1755362738108,1.0178,4407.2,4407.1,22.7307]
[1755362738414,3.2078,4407.6,4407.5,1.4822]
[1755362738415,3.66126,4407.6,4407.5,1.4822]
[1755362738712,3.2078,4407.6,4407.5,1.93566]
[1755362739414,3.2078,4407.6,4407.5,1.4822]
[1755362740104,3.2078,4408.1,4408.0,1.4822]
[1755362743114,0.3831,4408.4,4408.3,1.93558]
[1755362744312,0.6144,4408.7,4408.6,0.1767]
[1755362744615,3.2078,4408.8,4408.7,1.4822]
[1755362745017,3.5909,4408.8,4408.7,1.4822]
[1755362745410,0.3831,4408.8,4408.7,1.4822]
[1755362745616,1.47111,4409.0,4408.9,1.4822]
[1755362746311,0.4034,4408.7,4408.6,0.45334]
[1755362746617,0.85678,4408.3,4408.2,3.3845]
[1755362746915,1.0178,4408.3,4408.2,0.1767]
[1755362747116,1.0178,4408.3,4408.2,1.06039]
[1755362747313,1.0178,4408.3,4408.2,1.30729]
[1755362747713,0.45337,4408.5,4408.4,1.06037]
[1755362748017,0.83647,4408.5,4408.4,1.4822]
[1755362748316,1.07837,4408.5,4408.4,1.4822]
[1755362748516,1.47117,4408.5,4408.4,1.4822]
[1755362748712,1.47117,4408.5,4408.4,0.6745]
[1755362748918,1.47117,4408.5,4408.4,0.2469]
[1755362749815,0.45337,4408.5,4408.4,0.6737]
[1755362750013,3.8772,4409.2,4409.1,0.4236]
[1755362750218,4.53291334,4409.2,4409.1,0.5871]
[1755362750520,4.53291334,4409.2,4409.1,1.4909]
[1755362750714,4.93261334,4409.2,4409.1,1.4909]
[1755362751419,4.93261334,4409.2,4409.1,1.11]
[1755362752316,4.93261334,4409.2,4409.1,1.4909]
[1755362757626,1.11617,4408.5,4408.4,0.6829]
[1755362757926,1.52187,4408.5,4408.4,1.4909]
[1755362759024,1.0685,4408.5,4408.4,1.4909]
[1755362760122,1.52186,4408.5,4408.4,1.4909]
[1755362760424,1.52186,4408.5,4408.4,0.2593]
[1755362760920,2.4044,4408.5,4407.8,0.4268]
[1755362761120,2.4044,4408.5,4408.1,0.2593]
[1755362761121,4.2763,4408.2,4408.1,0.2593]
[1755362761420,4.2763,4408.2,4407.8,0.2636]
[1755362761421,0.45343,4407.9,4407.8,1.56343]
[1755362761621,0.45343,4407.9,4407.8,1.4909]
[1755362761821,1.52193,4407.9,4407.8,1.4909]
[1755362762116,1.52193,4407.9,4407.8,1.94433]
[1755362762721,1.52193,4407.9,4407.8,1.4909]
[1755362764023,1.29103,4407.9,4407.8,0.2593]
[1755362764229,1.52193,4407.9,4407.8,0.2593]
[1755362764423,1.52193,4407.9,4407.8,0.4225]
[1755362764629,1.52193,4407.9,4407.8,0.6861]
[1755362765830,1.52193,4407.9,4407.8,0.4225]
[1755362766224,1.52193,4407.9,4407.8,0.2593]
[1755362766926,1.52193,4407.9,4407.8,0.6861]
[1755362767523,1.52193,4407.9,4407.8,0.2593]
[1755362768130,1.52193,4407.9,4407.8,0.6861]
[1755362768631,1.52193,4407.9,4407.8,1.4909]
[1755362770031,1.52193,4407.9,4407.8,1.11]
[1755362770531,1.52193,4407.9,4407.8,0.4225]
[1755362771829,0.4535,4407.2,4407.0,3.2078]
[1755362772130,0.8914,4407.2,4407.1,1.4909]
[1755362772634,1.522,4407.2,4407.1,1.4909]
[1755362773030,1.522,4407.2,4407.1,1.9444]
[1755362773333,1.2911,4407.2,4407.1,1.9444]
[1755362773632,1.2911,4407.2,4407.1,1.4909]
[1755362774631,1.522,4407.2,4407.1,1.4909]
[1755362776339,1.522,4407.2,4407.1,0.2593]
[1755362777434,1.522,4407.2,4407.1,0.4225]
[1755362777635,1.522,4407.2,4407.1,0.8496]
[1755362777935,1.522,4407.2,4407.1,1.4909]
[1755362780645,3.2078,4407.6,4407.1,1.4909]
[1755362780847,1.26667,4407.4,4407.3,0.6044]
[1755362781041,1.49817,4407.4,4407.3,1.4838]
[1755362782141,1.49817,4407.4,4407.3,0.4319]
[1755362784248,1.49817,4407.4,4407.3,0.687]
[1755362785044,1.49817,4407.4,4407.3,0.4319]
[1755362785950,1.26676,4406.6,4406.5,1.2245]
[1755362786150,1.49826,4406.6,4406.5,1.2245]
[1755362786346,1.49826,4406.6,4406.5,1.4838]
[1755362787351,0.69836,4406.6,4406.5,1.4838]
[1755362787947,0.45356,4406.6,4406.5,0.2593]
[1755362788154,1.49826,4406.6,4406.5,1.4838]
[1755362788650,1.26676,4406.6,4406.5,1.4838]
[1755362789152,1.49826,4406.6,4406.5,1.4838]
[1755362793760,1.49826,4406.6,4406.5,1.1188]
[1755362793951,1.49826,4406.6,4406.5,0.4319]
[1755362794255,1.49826,4406.6,4406.5,0.2593]
[1755362794749,1.49826,4406.6,4405.5,53.41]
[1755362794750,0.45365,4405.7,4405.6,1.57245]
[1755362794955,0.3939,4405.7,4405.6,1.05805]
[1755362795456,0.2315,4405.8,4405.6,1.93745]
[1755362795654,0.45363,4405.9,4405.8,1.93744]
[1755362795952,3.2078,4406.3,4406.2,0.4274]
[1755362796154,3.2078,4406.8,4406.7,0.6044]
[1755362796459,3.2078,4406.8,4406.7,1.4838]
[1755362796648,3.2078,4406.8,4406.7,1.95994]
[1755362797252,3.2078,4406.8,4406.7,1.93734]
[1755362799258,3.2078,4407.4,4407.3,0.6044]
[1755362799558,5.33300255,4407.4,4407.3,0.5144]
[1755362799959,5.33300255,4407.4,4406.3,0.0226]
[1755362799960,0.9791,4406.8,4406.7,1.4838]
[1755362800163,1.2106,4406.8,4406.7,1.4838]
[1755362801057,0.6387,4406.8,4406.7,1.4838]
[1755362801662,0.8046,4406.8,4406.7,1.4838]
[1755362802162,0.8046,4406.8,4406.7,1.93734]
[1755362802361,0.8046,4406.8,4406.7,1.4838]
[1755362805661,0.2448,4406.8,4406.7,1.4838]
[1755362805959,0.6387,4406.8,4406.7,1.4838]
[1755362806756,0.8046,4406.8,4406.7,1.4838]
[1755362807056,1.2106,4406.8,4406.7,1.4838]
[1755362807465,0.9791,4406.8,4406.7,1.4838]
[1755362809564,0.9791,4406.8,4406.7,0.4319]
[1755362809765,1.467,4406.8,4406.7,0.8677]
[1755362809959,1.467,4406.8,4406.7,1.5197]
[1755362812964,1.216,4406.3,4406.2,1.124]
[1755362813259,1.472,4406.3,4406.2,1.124]
[1755362813659,1.472,4406.3,4406.0,20.74]
[1755362813854,0.614,4406.2,4406.0,20.74]
[1755362814053,1.0899,4406.1,4406.0,21.0893]
[1755362814254,1.472,4406.1,4406.0,21.743]
[1755362814663,1.9256,4406.1,4406.0,1.2546]
[1755362816162,1.6696,4406.1,4406.0,1.5153]
[1755362817857,1.9256,4406.1,4406.0,1.5153]
[1755362820670,1.9256,4406.1,4406.0,1.124]
[1755362821169,1.9256,4406.1,4406.0,1.5153]
[1755362821863,1.9256,4406.1,4406.0,1.124]
[1755362822368,1.9256,4406.1,4406.0,1.5153]
[1755362825264,1.6696,4406.1,4406.0,1.5153]
[1755362827368,1.9256,4406.1,4406.0,1.5153]
[1755362831268,0.45368,4405.4,4405.1,3.9131]
[1755362831469,1.10199,4405.4,4405.3,1.5153]
[1755362831867,1.27049,4405.4,4405.3,1.5153]
[1755362832063,1.50239,4405.4,4405.3,1.5153]
[1755362832265,1.66969,4405.4,4405.3,1.5153]
[1755362833064,1.43779,4405.4,4405.3,1.5153]
[1755362833264,1.66969,4405.4,4405.3,1.5153]
[1755362833968,1.92569,4405.4,4405.3,1.124]
[1755362834370,1.92569,4405.4,4405.3,1.5153]
[1755362836075,1.92569,4405.4,4405.3,1.124]
[1755362836667,1.92569,4405.4,4405.3,1.5153]
[1755362839877,1.66969,4405.4,4405.3,1.5153]
[1755362840777,0.3821,4405.4,4404.8,0.71003]
[1755362840970,1.91028,4405.4,4405.3,1.4734]
[1755362843377,1.66658,4405.4,4405.3,1.4734]
[1755362844681,1.43458,4405.4,4405.3,1.4734]
[1755362845173,1.66658,4405.4,4405.3,1.4734]
[1755362845576,1.43458,4405.4,4405.3,1.4734]
[1755362846079,1.66658,4405.4,4405.3,1.4734]
[1755362847780,1.91028,4405.4,4405.3,1.1038]
[1755362848577,1.91028,4405.4,4404.6,21.9615]
[1755362848578,1.66385,4404.7,4404.6,21.9615]
[1755362848777,1.66385,4404.7,4404.6,22.2104]
[1755362848976,0.45375,4404.7,4404.6,1.4734]
[1755362849681,0.83305,4404.7,4404.6,1.4734]
[1755362850679,1.08165,4404.7,4404.6,1.4734]
[1755362850880,1.48975,4404.7,4404.6,1.4734]
[1755362851080,1.66285,4404.7,4404.6,1.4734]
[1755362852879,1.43185,4404.7,4404.6,0.609]
[1755362853085,1.90655,4404.7,4404.6,1.4734]
[1755362853478,1.66285,4404.7,4404.6,1.4734]
[1755362857290,1.90655,4404.7,4404.6,1.4734]
[1755362857687,1.66285,4404.7,4404.6,0.2563]
[1755362857991,1.90655,4404.7,4404.6,1.2245]
[1755362858182,1.90655,4404.7,4404.6,1.4734]
[1755362858382,1.66285,4404.7,4404.6,1.4734]
[1755362860086,3.2078,4404.9,4404.7,0.82915]
[1755362860388,0.45364,4405.8,4405.6,0.2563]
[1755362860582,0.45364,4405.8,4405.7,1.4734]
[1755362860981,1.25864,4405.8,4405.7,1.4734]
[1755362861188,0.70224,4405.8,4405.7,1.4734]
[1755362861381,0.45364,4405.8,4405.7,1.4734]
[1755362861582,0.45364,4405.8,4405.7,1.1038]
[1755362861583,1.66274,4405.8,4405.7,1.1038]
[1755362861789,1.66276,4405.5,4405.4,0.8549]
[1755362862092,1.90646,4405.5,4405.4,1.4734]